[Event "Portugal-ch Seniors-50 2022"]
[Site "Atouguia da Baleia"]
[Date "2022.06.16"]
[Round "2.10"]
[White "Correia, Joao Pedro De Sousa"]
[Black "Maissa, Susana Flora Cesana"]
[Result "0-1"]
[ECO "B10"]
[WhiteElo "1848"]
[BlackElo "1379"]
[Annotator "NA RC COMBH"]
[PlyCount "92"]
[EventDate "2022.06.09"]
[EventType "swiss"]
[EventCountry "POR"]
[SourceTitle "playchess.com"]
[Source "ChessBase"]
[SourceQuality "1"]
[TimeControl "5400+30"]

1. e4 {[%emt 0:00:07]} c6 {[%emt 0:00:18]} 2. Nf3 {[%emt 0:00:07]} d5 {[%emt 0:00:30]} 3. Nc3 {[%emt 0:00:26]} dxe4 {[%emt 0:00:44]} 4. Nxe4 {[%emt 0:00:15]} Nd7 {[%emt 0:01:32]} 5. d4 {[%emt 0:00:40]} Ngf6 {[%emt 0:01:01]} 6. Bd3 {[%emt 0:00:14]} Nxe4 {[%emt 0:01:17]} 7. Bxe4 {[%emt 0:00:09]} Nf6 {[%emt 0:00:26]} 8. Bd3 {[%emt 0:00:11]} Bg4 {[%emt 0:03:22]} 9. c4 {[%emt 0:05:17]} Bxf3 {[%emt 0:09:22]} 10. Qxf3 {[%emt 0:00:09]} Qxd4 {[%emt 0:02:40]} 11. O-O {[%emt 0:00:31]} e6 {[%emt 0:02:46]} 12. Bf4 {[%emt 0:02:41]} Be7 {[%emt 0:14:26]} 13. Rfd1 {[%emt 0:02:54]} Qb6 {[%emt 0:02:16]} 14. b4 {[%emt 0:01:47]} O-O {[%emt 0:03:35]} 15. Qh3 {[%emt 0:05:10]} Bxb4 {[%emt 0:09:34]} 16. Be5 {[%emt 0:04:49]} Rfd8 {[%emt 0:17:09]} 17. Qg3 {[%emt 0:07:52]} Nh5 {[%emt 0:07:17]} 18. Qg5 {[%emt 0:05:13]} f6 {[%emt 0:03:50]} 19. Qxh5 {[%emt 0:07:46]} Rxd3 {[%emt 0:01:50]} 20. Rxd3 {[%emt 0:01:18]} fxe5 {[%emt 0:02:47]} 21. Rd7 {[%emt 0:05:45]} Rf8 {[%emt 0:01:12]} 22. Qe2 {[%emt 0:10:11]} Bc3 {[%emt 0:02:28]} 23. Rad1 {[%emt 0:02:45]} e4 {[%emt 0:04:05]} 24. Qe3 {[%emt 0:04:18]} Qb2 {[%emt 0:03:49]} 25. Rd8 {[%emt 0:04:08]} Bf6 {[%emt 0:02:22]} 26. Rxf8+ {[%emt 0:01:35]} Kxf8 {[%emt 0:00:12]} 27. Qc5+ {[%emt 0:00:50]} Kf7 {[%emt 0:00:41]} 28. Qh5+ {[%emt 0:01:45]} Ke7 {[%emt 0:00:47]} 29. Qc5+ {[%emt 0:04:34]} Kf7 {[%emt 0:00:13]} 30. Qxa7 {[%emt 0:01:40]} Qb4 {[%emt 0:02:20]} 31. g4 {[%emt 0:04:53]} Qxc4 {[%emt 0:00:35]} 32. Qxb7+ {[%emt 0:02:09]} Kg6 {[%emt 0:00:22]} 33. Qb1 {[%emt 0:01:11]} Kf7 {[%emt 0:00:23]} 34. Qb3 {[%emt 0:02:58]} Qc5 {[%emt 0:00:27]} 35. Rd7+ {[%emt 0:03:26]} Be7 {[%emt 0:00:46]} 36. Qe3 {[%emt 0:01:04]} Qe5 {[%emt 0:00:26]} 37. f4 {[%emt 0:01:11]} Qa1+ {[%emt 0:00:18]} 38. Kg2 {[%emt 0:01:01]} Qxa2+ {[%emt 0:00:10]} 39. Kg3 {[%emt 0:00:52]} Ke8 {[%emt 0:00:35]} 40. Ra7 {[%emt 0:01:52]} Qb2 {[%emt 0:00:17]} 41. Qxe4 {[%emt 0:01:27]} Qc1 {[%emt 0:00:38]} 42. Ra6 {[%emt 0:01:55]} Qg1+ {[%emt 0:00:36]} 43. Qg2 {[%emt 0:00:46]} Qe1+ {[%emt 0:00:23]} 44. Qf2 {[%emt 0:01:36]} Bh4+ {[%emt 0:00:29]} 45. Kxh4 {[%emt 0:00:19]} Qxf2+ {[%emt 0:00:06]} 46. Kg5 {[%emt 0:00:20]} Qxh2 {[%emt 0:00:29]} 0-1

[Event "Portugal-ch Seniors-50 2022"]
[Site "Atouguia da Baleia"]
[Date "2022.06.17"]
[Round "3.6"]
[White "Fernandes, Alberto"]
[Black "Cavadas, Jose"]
[Result "1-0"]
[ECO "B23"]
[WhiteElo "2094"]
[BlackElo "1382"]
[Annotator "TA"]
[PlyCount "113"]
[EventDate "2022.06.09"]
[EventType "swiss"]
[EventCountry "POR"]
[SourceTitle "playchess.com"]
[Source "ChessBase"]
[SourceQuality "1"]
[TimeControl "5400+30"]

{[%evp 9,112,19,35,17,20,24,24,24,140,5,37,8,8,-11,-14,-18,34,11,12,4,9,9,10,0,18,25,33,41,225,230,247,247,408,417,455,443,437,430,504,514,462,226,214,244,611,383,554,511,786,806,648,378,354,365,667,392,384,371,461,428,400,305,417,418,711,704,693,686,704,635,766,704,689,682,704,697,701,680,636,597,686,674,669,644,755,744,757,602,832,792,780,770,868,862,941,943,29981,29982,29982,29983,29988,29989,29989,29990,29999]} 1. e4 {[%emt 0:00:21]} c5 {[%emt 0:00:15]} 2. Nc3 {[%emt 0:00:11]} a6 {[%emt 0:00:50]} 3. f4 {[%emt 0:02:06]} d6 {[%emt 0:00:15]} 4. Nf3 {[%emt 0:00:17]} e6 {[%emt 0:01:11]} 5. g3 {[%emt 0:00:41]} Nf6 {[%emt 0:00:38]} 6. d3 {[%emt 0:00:32] B23: Closed Sicilian: Lines without g3.} b5 {[%emt 0:01:20]} 7. Bg2 {[%emt 0:00:40]} Bb7 {[%emt 0:00:23]} 8. O-O {[%emt 0:00:22] And now e5 would win. White has an edge.} Nbd7 {[%emt 0:03:34] [#]} (8... Be7 $11) 9. Bd2 $146 {[%emt 0:02:07]} (9. e5 $1 $16 {[%cal Re5f6]}) ({Predecessor:} 9. h3 g6 10. g4 Bg7 11. Ne2 O-O 12. Ng3 d5 13. e5 Ne8 14. g5 Nc7 15. Nh2 {1-0 (35) Svane,F (2423)-Siebrecht,S (2429) Playchess.com INT 2020}) 9... Rc8 {[%emt 0:01:17]} 10. h3 {[%emt 0:09:40]} Be7 {[%emt 0:03:47]} 11. Kh2 {[%emt 0:00:23]} Qc7 {[%emt 0:06:39]} 12. Ne2 {[%emt 0:01:32][%cal Bc3e2,Be2d4,Bd4e6][%mdl 32]} c4 {[%emt 0:14:38]} (12... O-O $11) 13. Rc1 {[%emt 0:07:04]} Qb6 {[%emt 0:01:37]} 14. a3 {[%emt 0:02:21]} a5 {[%emt 0:01:10]} 15. Qe1 {[%emt 0:13:18]} Ra8 {[%emt 0:00:11]} 16. Ned4 {[%emt 0:00:14]} Nc5 {[%emt 0:06:13]} 17. Be3 {[%emt 0:09:26]} cxd3 {[%emt 0:00:56]} 18. b4 {[%emt 0:00:20]} d2 $2 {[%emt 0:05:11] A mistake that costs the game.} (18... Ncxe4 $2 {[#]} 19. Nxe6 $1 {[%mdl 512]} d2 20. Nxd2 $1 $18 (20. Bxb6 dxe1=N 21. Nc7+ Kd7 $18)) ({Black should play} 18... axb4 $14 19. axb4 dxc2) 19. Nxd2 $18 {[%emt 0:00:28]} axb4 {[%emt 0:12:14]} 20. axb4 {[%emt 0:02:14]} Ncxe4 $2 {[%emt 0:02:56] [#]} (20... O-O 21. N4b3 Rfc8) 21. Nxe6 $1 {[%emt 0:00:39][%mdl 512]} Qc6 {[%emt 0:00:26]} 22. Nxg7+ {[%emt 0:00:40]} Kf8 {[%emt 0:00:22]} 23. Nf5 {[%emt 0:01:09] Hoping for Bd4.} Qd7 {[%emt 0:01:04]} 24. Nxe7 Qxe7 {[%emt 0:00:22]} 25. Nxe4 {[%emt 0:06:48]} (25. Bd4 $142) 25... Nxe4 {[%emt 0:01:44]} 26. f5 {[%emt 0:00:19]} Qf6 $2 {[%emt 0:05:56]} (26... h5 27. Bf4 Rc8) 27. Bf4 {[%emt 0:06:16] This bishop pair is nice.} d5 {[%emt 0:00:57]} (27... Re8 $142 28. Qe3 Kg7) 28. Qe3 {[%emt 0:00:32] Black must now prevent Bxe4.} h5 {[%emt 0:02:13]} (28... Kg7 $142 29. Bxe4 dxe4) 29. Bxe4 {[%emt 0:01:26]} dxe4 {[%emt 0:00:03]} 30. Qc5+ {[%emt 0:00:14]} Kg8 {[%emt 0:01:09]} 31. Be5 {[%emt 0:00:10]} ({Much less strong is} 31. Qxb5 Ba6 32. Qa5 Qc6 $18) 31... Qh6 {[%emt 0:00:48]} (31... Qc6 32. Qxc6 Bxc6 33. Bxh8 Kxh8) 32. Bxh8 {[%emt 0:05:16]} Qd2+ {[%emt 0:03:37]} 33. Qf2 {[%emt 0:01:45]} Qxf2+ {[%emt 0:00:58]} 34. Rxf2 {[%emt 0:00:07]} Kxh8 {[%emt 0:00:09][%mdl 4096] Endgame KRR-KRB} 35. Re1 {[%emt 0:01:49]} Re8 {[%emt 0:00:51]} 36. Re3 {[%emt 0:00:19]} f6 {[%emt 0:01:07]} (36... Rd8 $142 37. f6 Kh7) 37. Rd2 {[%emt 0:00:39]} Re7 {[%emt 0:00:55]} 38. g4 {[%emt 0:01:14]} h4 {[%emt 0:00:41]} 39. Rd6 {[%emt 0:00:22]} Rc7 {[%emt 0:00:59]} 40. c3 {[%emt 0:00:39]} Kg7 {[%emt 0:00:25]} 41. Kg2 {[%emt 0:00:41]} Kf7 {[%emt 0:00:39]} 42. Kf2 {[%emt 0:00:13]} Ke7 {[%emt 0:00:46]} 43. Re6+ {[%emt 0:00:13]} Kf7 {[%emt 0:00:23]} 44. Ke2 {[%emt 0:00:18]} Kg7 {[%emt 0:03:52]} 45. Rd6 {[%emt 0:01:35] Against Bd5} Kf7 {[%emt 0:00:16]} 46. Kd2 {[%emt 0:00:19]} Kg7 {[%emt 0:01:04]} 47. Re1 {[%emt 0:02:02]} Kf7 {[%emt 0:00:23]} 48. Kc2 {[%emt 0:01:38]} Ke7 {[%emt 0:01:08]} 49. Re6+ {[%emt 0:00:09]} Kf7 {[%emt 0:00:26]} 50. Rd1 {[%emt 0:00:31]} Kg7 {[%emt 0:01:40]} 51. Rdd6 {[%emt 0:01:34]} Rf7 {[%emt 0:00:38]} 52. Kd2 {[%emt 0:00:17]} Kh6 {[%emt 0:02:38]} 53. Rxf6+ {[%emt 0:00:14] White mates.} Rxf6 {[%emt 0:00:39]} 54. Rxf6+ {[%emt 0:00:07]} Kg5 {[%emt 0:00:15]} 55. Rb6 {[%emt 0:00:10][%csl LRb5,LRb7]} Bd5 {[%emt 0:06:20]} 56. Ke3 {[%emt 0:00:12][%csl Gf5][%cal Rb6g6]} Bc4 {[%emt 0:01:49]} 57. Rg6# {[%emt 0:00:11] Weighted Error Value: White=0.47/Black=0.64} 1-0

[Event "Portugal-ch Seniors-50 2022"]
[Site "Atouguia da Baleia"]
[Date "2022.06.17"]
[Round "3.7"]
[White "Galvao, Henrique"]
[Black "Tavares, Antonio Americo"]
[Result "1/2-1/2"]
[ECO "B20"]
[WhiteElo "2118"]
[BlackElo "1933"]
[Annotator "TA"]
[PlyCount "67"]
[EventDate "2022.06.09"]
[EventType "swiss"]
[EventCountry "POR"]
[SourceTitle "playchess.com"]
[Source "ChessBase"]
[SourceQuality "1"]
[TimeControl "5400+30"]

{[%evp 9,67,58,52,57,72,69,105,84,88,87,94,63,73,64,77,51,71,70,79,58,70,8,31,19,29,0,0,0,0,-30,-41,-30,-31,-42,-2,-41,-44,-57,-54,-57,0,0,0,-111,-116,-137,-57,-117,-121,-179,-95,-88,-93,-94,-75,-81,0,0,0,0]} 1. e4 c5 2. d4 e6 3. d5 exd5 4. exd5 d6 5. Nf3 Nf6 6. Bd3 {A43: Schmid Benoni.} Bg4 7. h3 Bh5 8. O-O {Active counter play! White is better.} ({Resist} 8. Bb5+ Nbd7 $14) 8... Be7 9. Re1 O-O 10. Nc3 Nbd7 {[%cal Od7e5]} 11. Bf4 {Prevents Ne5.} a6 12. a4 {Prevents b5.} Re8 13. g4 Bg6 {[#]} 14. Qd2 $146 ({Predecessor:} 14. Bxg6 hxg6 15. Qd3 Qc7 16. Rad1 Bf8 17. Ng5 Rxe1+ 18. Rxe1 Re8 19. Rxe8 Nxe8 20. Qe2 {½-½ (37) Bartel,M (2245)-Zurkowski,A (2106) Warsaw 2011}) 14... Qc7 15. Nh4 (15. Bxg6 $14 hxg6 16. Kg2) 15... Ne5 $11 16. Bxe5 dxe5 17. Rad1 {[#] Black must now prevent Bxg6.} Bd6 18. Bxg6 hxg6 19. Ne4 Nxe4 20. Rxe4 b5 21. Rde1 Red8 22. b3 c4 23. g5 cxb3 24. cxb3 Rac8 (24... a5 $15) 25. axb5 axb5 26. Qd3 (26. Nf3 $11) 26... Qc3 $17 27. Qxb5 Rb8 ({Better is} 27... Qxh3 $17 28. b4 Rc2) 28. Qf1 (28. Qc4 $15 Rxb3 29. Qxc3 Rxc3 30. R4e3) 28... Qxb3 29. Rc4 (29. Kg2 $17 {was necessary.}) 29... Rb4 (29... Rdc8 $19 30. Rg4 Rc5) 30. Rxb4 Qxb4 31. Ng2 Qb3 32. Ne3 {[#]} Rc8 {Against Qc4} ({Black should play} 32... Be7 $1 $17 33. Rb1 Qa4) 33. Rc1 $11 Rd8 34. Qc4 {Weighted Error Value: White=0.21 (precise) /Black=0.18 (very precise)} 1/2-1/2

[Event "Portugal-ch Seniors-50 2022"]
[Site "Atouguia da Baleia"]
[Date "2022.06.17"]
[Round "3.8"]
[White "Elias, Benjamim"]
[Black "Da Silva, Reinaldo S.B."]
[Result "0-1"]
[ECO "A02"]
[WhiteElo "1818"]
[BlackElo "2340"]
[Annotator "TA"]
[PlyCount "54"]
[EventDate "2022.06.09"]
[EventType "swiss"]
[EventCountry "POR"]
[SourceTitle "playchess.com"]
[Source "ChessBase"]
[SourceQuality "1"]
[TimeControl "5400+30"]

{[%evp 9,54,1,0,-38,-20,-16,-15,-58,-46,-60,90,75,159,145,133,125,169,155,160,88,101,-77,-87,-227,-213,-193,-179,-177,-176,-185,-151,-158,-146,-134,-75,-140,-160,-350,-352,-565,-362,-920,-933,-1386,-1380,-1410,-1400]} 1. f4 e6 2. b3 d5 3. Bb2 Nf6 4. Nf3 Bd6 5. e3 c5 6. Rg1 {A03: Bird's Opening with 1...d5.} Nc6 7. g4 {[#]} d4 $146 ({Predecessor:} 7... e5 8. fxe5 Nxg4 9. exd6 Nxh2 10. Rxg7 Bg4 11. Rxg4 Nxg4 12. Bxh8 Qxd6 13. Qe2 O-O-O 14. Bb2 Re8 {0-1 (14) Ethier,M (1766)-Vollmer,S (1577) FICGS email 2016}) 8. g5 {The position is equal.} Nd5 9. c4 dxc3 (9... Nde7 $15) 10. Nxc3 $16 Rg8 ({Black should try} 10... Nxc3 11. Bxc3 (11. dxc3 e5 $11) 11... e5) 11. Ne4 Be7 12. a3 Qa5 13. Kf2 Bd7 14. Bd3 (14. Qc2 $142) 14... Qb6 {[%cal Od5f4]} 15. Nc3 $2 {[#]} (15. Be2 $16) 15... Nxf4 $1 $17 16. Bxh7 (16. Bf1 $17 {is a better defense.} Ng6 17. Na4) 16... Nh3+ $19 17. Kg2 Rh8 18. Kxh3 Rxh7+ 19. Kg2 O-O-O {White must now prevent ...Na5.} 20. Qc2 Rdh8 {Hoping for ...Na5.} 21. Ne4 Kb8 (21... e5 $142 {Threatens to win with ...f5.} 22. Kf2 Be6) 22. g6 ({White should play} 22. Rac1) 22... fxg6 $17 {[%cal Oe6e5,Bf7g6,Bg6g5][%mdl 32] aiming for ...e5!} 23. Ng3 $2 {[#]} (23. Kh1 $17) 23... g5 $19 24. Qg6 $2 (24. h4 g4 25. Ne5 Nxe5 26. Bxe5+ Bd6 27. Qc3) 24... Bf6 25. Rgb1 $2 (25. Bxf6 gxf6 26. Qxf6) 25... Ne7 {Black is clearly winning.} 26. Qe4 Bc6 27. Be5+ Ka8 {Weighted Error Value: White=0.87/Black=0.32} 0-1

[Event "Portugal-ch Seniors-50 2022"]
[Site "Atouguia da Baleia"]
[Date "2022.06.17"]
[Round "3.9"]
[White "Maissa, Susana Flora Cesana"]
[Black "Godinho Marques, Pedro"]
[Result "0-1"]
[ECO "D02"]
[WhiteElo "1379"]
[BlackElo "1838"]
[Annotator "NA RC"]
[PlyCount "72"]
[EventDate "2022.06.09"]
[EventType "swiss"]
[EventCountry "POR"]
[SourceTitle "playchess.com"]
[Source "ChessBase"]
[SourceQuality "1"]
[TimeControl "5400+30"]

1. d4 {[%emt 0:00:11]} d5 {[%emt 0:00:29]} 2. Nf3 {[%emt 0:00:21]} e6 {[%emt 0:00:50]} 3. Bf4 {[%emt 0:00:45]} Bd6 {[%emt 0:01:06]} 4. Bg3 {[%emt 0:01:31]} Nf6 {[%emt 0:02:06]} 5. e3 {[%emt 0:00:38]} O-O {[%emt 0:04:07]} 6. Bd3 {[%emt 0:01:13]} c5 {[%emt 0:01:59]} 7. c3 {[%emt 0:02:29]} Nc6 {[%emt 0:01:42]} 8. Nbd2 {[%emt 0:01:46]} Re8 {[%emt 0:12:58]} 9. dxc5 {[%emt 0:06:56]} Bxc5 {[%emt 0:01:01]} 10. O-O {[%emt 0:01:03]} a5 {[%emt 0:04:48]} 11. Qc2 {[%emt 0:02:55]} e5 {[%emt 0:05:48]} 12. Bb5 {[%emt 0:02:46]} Bd6 {[%emt 0:06:03]} 13. Rac1 {[%emt 0:07:01]} Qd7 {[%emt 0:05:30]} 14. Qb3 {[%emt 0:08:21]} Qg4 {[%emt 0:03:12]} 15. h3 {[%emt 0:02:09]} Qh5 {[%emt 0:00:33]} 16. Rfd1 {[%emt 0:12:47]} Be6 {[%emt 0:07:58]} 17. Qa4 {[%emt 0:01:21]} Rec8 {[%emt 0:06:09]} 18. c4 {[%emt 0:13:29]} Bb4 {[%emt 0:08:48]} 19. Bxc6 {[%emt 0:05:19]} Bxd2 {[%emt 0:01:41]} 20. Bxb7 {[%emt 0:01:48]} Bxc1 {[%emt 0:00:44]} 21. Rxc1 {[%emt 0:04:40]} Ne4 {[%emt 0:06:38]} 22. Bxe5 {[%emt 0:11:55]} Nc5 {[%emt 0:02:00]} 23. Qb5 {[%emt 0:02:04]} Nxb7 {[%emt 0:02:43]} 24. Qxb7 {[%emt 0:00:11]} dxc4 {[%emt 0:00:14]} 25. b3 {[%emt 0:06:24]} cxb3 {[%emt 0:02:51]} 26. Rxc8+ {[%emt 0:00:25]} Rxc8 {[%emt 0:00:07]} 27. axb3 {[%emt 0:01:29]} f6 {[%emt 0:01:26]} 28. Bd4 {[%emt 0:01:51]} Qd5 {[%emt 0:02:17]} 29. Qxd5 {[%emt 0:00:40]} Bxd5 {[%emt 0:00:20]} 30. Bb6 {[%emt 0:00:19]} Bxf3 {[%emt 0:02:11]} 31. gxf3 {[%emt 0:00:02]} Ra8 {[%emt 0:00:45]} 32. Kg2 {[%emt 0:00:31]} Kf7 {[%emt 0:00:08]} 33. e4 {[%emt 0:00:59]} Ke6 {[%emt 0:00:06]} 34. f4 {[%emt 0:00:34]} Ra6 {[%emt 0:00:19]} 35. Bc7 {[%emt 0:00:31]} Kd7 {[%emt 0:00:23]} 36. Bb8 {[%emt 0:00:30]} Kc8 {[%emt 0:00:35]} 0-1

[Event "Portugal-ch Seniors-50 2022"]
[Site "Atouguia da Baleia"]
[Date "2022.06.17"]
[Round "3.10"]
[White "Arantes, Carlos Eduardo Gonca"]
[Black "Correia, Joao Pedro De Sousa"]
[Result "1-0"]
[ECO "A20"]
[WhiteElo "1722"]
[BlackElo "1848"]
[Annotator "NA RC"]
[PlyCount "79"]
[EventDate "2022.06.09"]
[EventType "swiss"]
[EventCountry "POR"]
[SourceTitle "playchess.com"]
[Source "ChessBase"]
[SourceQuality "1"]
[TimeControl "5400+30"]

1. c4 {[%emt 0:00:17]} e5 {[%emt 0:01:25]} 2. g3 {[%emt 0:00:07]} Nf6 {[%emt 0:03:09]} 3. Bg2 {[%emt 0:00:12]} Bc5 {[%emt 0:02:03]} 4. Nc3 {[%emt 0:02:32]} O-O {[%emt 0:01:38]} 5. Nf3 {[%emt 0:00:06]} Re8 {[%emt 0:01:39]} 6. O-O {[%emt 0:00:36]} d5 {[%emt 0:01:15]} 7. b3 {[%emt 0:03:53]} c6 {[%emt 0:08:46]} 8. d3 {[%emt 0:03:47]} Bg4 {[%emt 0:12:12]} 9. h3 {[%emt 0:00:52]} Bxf3 {[%emt 0:01:13]} 10. Bxf3 {[%emt 0:00:02]} Bd4 {[%emt 0:04:28]} 11. Bb2 {[%emt 0:00:55]} e4 {[%emt 0:03:43]} 12. Bg2 {[%emt 0:06:26]} dxc4 {[%emt 0:06:45]} 13. bxc4 {[%emt 0:00:20]} e3 {[%emt 0:03:51]} 14. f4 {[%emt 0:01:59]} Nbd7 {[%emt 0:03:34]} 15. Rb1 {[%emt 0:00:39]} Qa5 {[%emt 0:06:16]} 16. Na4 {[%emt 0:02:36]} Bxb2 {[%emt 0:03:17]} 17. Rxb2 {[%emt 0:00:52]} Rab8 {[%emt 0:01:18]} 18. Qc2 {[%emt 0:02:16]} Nc5 {[%emt 0:06:34]} 19. Nxc5 {[%emt 0:01:06]} Qxc5 {[%emt 0:01:30]} 20. Rfb1 {[%emt 0:01:55]} b6 {[%emt 0:07:20]} 21. Qa4 {[%emt 0:02:17]} b5 {[%emt 0:01:05]} 22. cxb5 {[%emt 0:00:31]} cxb5 {[%emt 0:02:08]} 23. Rxb5 {[%emt 0:00:13]} Rxb5 {[%emt 0:00:28]} 24. Qxb5 {[%emt 0:01:03]} Qc2 {[%emt 0:03:24]} 25. Qb2 Qd2 {[%emt 0:01:13]} 26. Bf3 {[%emt 0:03:29]} h6 {[%emt 0:01:21]} 27. Qxd2 {[%emt 0:00:23]} exd2 {[%emt 0:00:35]} 28. Rd1 {[%emt 0:00:07]} Rb8 {[%emt 0:01:52]} 29. Rxd2 {[%emt 0:00:10]} Nd7 {[%emt 0:00:14]} 30. Rc2 {[%emt 0:00:50]} Nb6 {[%emt 0:01:09]} 31. Rc7 {[%emt 0:01:59]} a5 {[%emt 0:00:49]} 32. Ra7 {[%emt 0:00:02]} a4 {[%emt 0:00:25]} 33. Bc6 {[%emt 0:01:34]} Kf8 {[%emt 0:00:10]} 34. Bxa4 {[%emt 0:00:36]} Nd5 {[%emt 0:01:30]} 35. Bb3 {[%emt 0:00:44]} Ne3 {[%emt 0:01:14]} 36. Rxf7+ {[%emt 0:00:23]} Ke8 {[%emt 0:00:43]} 37. Rxg7 {[%emt 0:00:03]} Rb6 {[%emt 0:01:23]} 38. g4 {[%emt 0:03:16]} Rd6 {[%emt 0:01:02]} 39. Kf2 {[%emt 0:03:44]} Nd5 {[%emt 0:00:44]} 40. Bxd5 1-0

[Event "Portugal-ch Seniors-50 2022"]
[Site "Atouguia da Baleia"]
[Date "2022.06.18"]
[Round "4.1"]
[White "Gori, Andrea"]
[Black "Mendes, Jorge Alberto Dacal"]
[Result "1-0"]
[ECO "C41"]
[WhiteElo "1970"]
[BlackElo "1783"]
[Annotator "NA RC"]
[PlyCount "67"]
[EventDate "2022.06.09"]
[EventType "swiss"]
[EventCountry "POR"]
[SourceTitle "playchess.com"]
[Source "ChessBase"]
[SourceQuality "1"]
[TimeControl "5400+30"]

1. e4 e5 2. Nf3 d6 3. d4 exd4 4. Nxd4 Nf6 5. Nc3 Be7 6. Bd3 a6 7. a4 c5 8. Nf3 Nc6 9. O-O O-O 10. h3 h6 11. Bf4 Be6 12. Re1 Nd7 13. Nd5 Nde5 14. Be2 Nxf3+ 15. Bxf3 Ne5 16. Ra3 Rb8 17. Be2 b5 18. axb5 axb5 19. Ra7 Bxd5 20. Qxd5 Ra8 21. Rea1 Rxa7 22. Rxa7 Ng6 23. Bg3 b4 24. Bc4 Kh7 25. Qf5 Qc8 26. Rd7 Kg8 27. Ra7 Qb8 28. Rd7 Qc8 29. Ra7 Qb8 30. Ra5 Ne5 31. Bd5 g6 32. Bxf7+ Rxf7 33. Qe6 Qc8 34. Qxc8+ 1-0

[Event "Portugal-ch Seniors-50 2022"]
[Site "Atouguia da Baleia"]
[Date "2022.06.18"]
[Round "4.3"]
[White "Alves, Fernando Pereira Rib"]
[Black "Julio, Joao Manuel dos Sant"]
[Result "0-1"]
[ECO "C50"]
[WhiteElo "1524"]
[BlackElo "2005"]
[Annotator "NA RC"]
[PlyCount "62"]
[EventDate "2022.06.09"]
[EventType "swiss"]
[EventCountry "POR"]
[SourceTitle "playchess.com"]
[Source "ChessBase"]
[SourceQuality "1"]
[TimeControl "5400+30"]

1. e4 e5 2. Nf3 Nc6 3. Bc4 Be7 4. Nc3 d6 5. d4 Nf6 6. dxe5 dxe5 7. Qxd8+ Bxd8 8. Be3 h6 9. Bb5 Bd7 10. h3 O-O 11. O-O-O Re8 12. Rd2 a6 13. Be2 Be7 14. Ne1 Bb4 15. f3 Bxc3 16. bxc3 Be6 17. Kb2 Na5 18. g4 Red8 19. g5 Rxd2 20. Bxd2 hxg5 21. Bxg5 Ne8 22. h4 f6 23. Bc1 Rd8 24. h5 Kh7 25. Nd3 Nc4+ 26. Kb1 Ned6 27. Rg1 Bf7 28. f4 Nxe4 29. Bg4 Nxc3+ 30. Ka1 e4 31. Bf5+ Kh8 0-1

[Event "Portugal-ch Seniors-50 2022"]
[Site "Atouguia da Baleia"]
[Date "2022.06.18"]
[Round "4.4"]
[White "Viana, Eduardo Rosa"]
[Black "Mendes, Rui Oscar"]
[Result "0-1"]
[ECO "B13"]
[WhiteElo "1523"]
[BlackElo "1749"]
[Annotator "NA RC"]
[PlyCount "62"]
[EventDate "2022.06.09"]
[EventType "swiss"]
[EventCountry "POR"]
[SourceTitle "playchess.com"]
[Source "ChessBase"]
[SourceQuality "1"]
[TimeControl "5400+30"]

1. e4 {[%emt 0:00:02]} c6 {[%emt 0:00:09]} 2. d4 {[%emt 0:00:12]} d5 {[%emt 0:00:04]} 3. exd5 {[%emt 0:00:36]} cxd5 {[%emt 0:00:08]} 4. Bd3 {[%emt 0:00:06]} Nc6 {[%emt 0:00:16]} 5. c3 {[%emt 0:00:11]} Nf6 6. h3 {[%emt 0:00:11]} h6 {[%emt 0:01:43]} 7. Qe2 {[%emt 0:00:11]} e6 {[%emt 0:00:22]} 8. f4 {[%emt 0:00:08]} Bd6 {[%emt 0:05:47]} 9. Nf3 {[%emt 0:00:12]} Qc7 {[%emt 0:01:37]} 10. Ne5 {[%emt 0:00:26]} Nxd4 {[%emt 0:09:28]} 11. Qf2 {[%emt 0:03:46]} Nc6 {[%emt 0:22:59]} 12. Nxc6 {[%emt 0:00:26]} Qxc6 {[%emt 0:04:17]} 13. O-O {[%emt 0:00:25]} Bc5 {[%emt 0:01:12]} 14. Be3 {[%emt 0:00:09]} Bxe3 {[%emt 0:00:45]} 15. Qxe3 {[%emt 0:00:16]} O-O {[%emt 0:01:05]} 16. Nd2 {[%emt 0:00:42]} Bd7 {[%emt 0:03:26]} 17. Nf3 {[%emt 0:02:18]} Rfc8 {[%emt 0:01:11]} 18. Nd4 {[%emt 0:02:35]} Qd6 {[%emt 0:05:43]} 19. Rae1 {[%emt 0:03:56]} a6 {[%emt 0:01:37]} 20. Rf3 {[%emt 0:01:23]} Re8 {[%emt 0:04:04]} 21. Rg3 {[%emt 0:05:41]} Rac8 {[%emt 0:02:20]} 22. Kh1 {[%emt 0:05:15]} b5 {[%emt 0:04:10]} 23. Nf3 {[%emt 0:00:15]} Qc5 {[%emt 0:01:40]} 24. Qe5 {[%emt 0:02:45]} Qe7 {[%emt 0:01:04]} 25. Nh2 {[%emt 0:04:07]} Rc6 {[%emt 0:05:37]} 26. Ng4 {[%emt 0:00:38]} Nxg4 {[%emt 0:00:28]} 27. Rxg4 {[%emt 0:00:14]} f6 {[%emt 0:05:10]} 28. Qh5 {[%emt 0:02:31]} e5 {[%emt 0:09:08]} 29. Rg3 {[%emt 0:04:15]} e4 {[%emt 0:00:56]} 30. Bc2 {[%emt 0:00:22]} f5 {[%emt 0:00:29]} 31. Qxh6 {[%emt 0:00:19]} Rxh6 {[%emt 0:00:15]} 0-1